Cogmind - Beta 13 @@@ ROGUE MODE // 2024.04.13 @ 11:33:46 Player: graour Result: Destroyed by 7K-40B(z) with Makeshift Shrapnel Gun Performance ------------- Evolutions (1) 500 Regions Visited (4) 800 Robots Destroyed (34) 170 Value Destroyed (935) 935 Prototype IDs (0) 0 Alien Tech Used (0) 0 Bonus (459) 459 TOTAL SCORE: 2864 Bonus ------- Met Imprinter 300 Was Imprinted 300 Friendly Fire -141 Cogmind --------- Core Integrity 0/400 Matter 87/300 Energy 64/100 System Corruption 6% Temperature Cool (0) Movement Treading (163) Location -7/Zion Parts ------- > --- POWER (1) -------- (None) > --- PROPULSION (3) --- Armored Treads Medium Treads Medium Treads > --- UTILITY (3) ------ Improved Heat Sink Disposable Heat Sink High-capacity Storage Unit > --- WEAPON (2) ------- Heavy Assault Rifle Barrage Gun > --- INVENTORY (20) --- Light Nuclear Core Angular Momentum Engine Light Treads Improved Heat Sink Medium Matter Pod (100) Sensor Array Makeshift Hacking Suite Makeshift Hacking Suite High-powered Tractor Beam Recalibrator Hacking Drone Bay Riot Gun Makeshift Laser Heavy Assault Rifle Barrage Gun Grenade Launcher Mining Laser GAL Module Peak State ------------ > --- POWER ------------ (None) > --- PROPULSION ------- Armored Treads Medium Treads Medium Treads > --- UTILITY ---------- Improved Heat Sink Disposable Heat Sink High-capacity Storage Unit > --- WEAPON ----------- Heavy Assault Rifle Barrage Gun > --- INVENTORY -------- Light Nuclear Core Light Treads Improved Heat Sink Medium Matter Pod Sensor Array Makeshift Hacking Suite Makeshift Hacking Suite High-powered Tractor Beam Recalibrator Hacking Drone Bay Makeshift Laser Heavy Assault Rifle Barrage Gun Grenade Launcher Mining Laser GAL Module [Rating: 27] Favorites ----------- Power Light Angular Momentum Engine Engine Light Angular Momentum Engine Power Core Light Nuclear Core Propulsion Light Treads Treads Light Treads Utility High-capacity Storage Unit Device Disposable Heat Sink Storage High-capacity Storage Unit Weapon Heavy Assault Rifle Energy Gun Small Laser Ballistic Gun Heavy Assault Rifle Build | -11 -10 -9 -9 -7 ------- Run | Yrd Mat Mat Min Zio Slots Evolved 2 | . . 2 . . Power . | . . . . . Propulsion 1 | . . 1 . . Utility 1 | . . 1 . . Weapon . | . . . . . Parts Attached 45 | 6 8 15 1 15 Power 7 | 1 1 3 1 1 Engine 6 | 1 1 2 1 1 Core 1 | . . 1 . . Reactor . | . . . . . Propulsion 15 | 2 1 6 . 6 Treads 15 | 2 1 6 . 6 Leg . | . . . . . Wheel . | . . . . . Hover . | . . . . . Flight . | . . . . . Utility 10 | 1 5 1 . 3 Device 7 | . 3 1 . 3 Storage 3 | 1 2 . . . Processor . | . . . . . Hackware . | . . . . . Protection . | . . . . . Artifact . | . . . . . Weapon 13 | 2 1 5 . 5 Energy Gun 1 | 1 . . . . Energy Cannon . | . . . . . Ballistic Gun 12 | 1 1 5 . 5 Ballistic Cannon . | . . . . . Launcher . | . . . . . Special Weapon . | . . . . . Impact Weapon . | . . . . . Slashing Weapon . | . . . . . Piercing Weapon . | . . . . . Special Melee Weapon . | . . . . . Unidentified Prototypes . | . . . . . Corrupted Parts 1 | . . . . 1 System Corruption 1 | . . . . 1 Parts Lost 11 | . . . . 11 Power 1 | . . . . 1 Propulsion 5 | . . . . 5 Utility 1 | . . . . 1 Weapon 4 | . . . . 4 Highest Loss Streak 11 | . . . . 11 To Critical Strikes . | . . . . . Average Slot Usage (%) 98 | . 94 100 100 97 Engine 9 | . 13 7 1 9 Core 1 | . . 3 9 . Treads 32 | . 28 33 33 32 Device 20 | . 10 22 22 21 Storage 11 | . 14 11 11 11 Energy Gun 1 | . 12 . . . Ballistic Gun 21 | . 14 22 22 21 Naked Turns . | . . . . . Heaviest Build 58 | 11 47 53 57 58 Greatest Support 76 | 40 40 63 63 76 Greatest Overweight (x) 2 | . 1 . . 2 Average Overweight (x) . | . . . . . Largest Inventory Capacity 20 | 8 20 20 20 20 Average Capacity 18 | 6 10 20 20 20 Most Carried 20 | 4 19 20 20 20 Average Carried 17 | 2 7 18 19 19 Final Capacity 20 | 8 20 20 20 20 Final Carried 20 | 4 19 19 20 18 Class Distribution -------------------- 66% | Scavenger-Mutant 33% | Mutant Dominant Class ---------------- Mutant | -10/Materials Mutant | -9/Materials Scavenger-Mutant | -9/Mines Scavenger-Mutant | -7/Zion Resources | -11 -10 -9 -9 -7 ----------- Run | Yrd Mat Mat Min Zio Matter Collected 1116 | 241 75 577 34 189 Remotely 641 | . . 577 34 30 Salvage Created 1363 | . 71 864 118 310 Parts 84 | . 5 56 6 17 Haulers Intercepted 4 | . 1 3 . . Recyclers Shooed 1 | . . 1 . . Parts Field Recycled . | . . . . . Retrieved Matter . | . . . . . Parts Self-Destructed 1 | . . . . 1 Prevented . | . . . . . Kills | -11 -10 -9 -9 -7 ------- Run | Yrd Mat Mat Min Zio Combat Hostiles Destroyed 20 | . 2 11 3 4 Guns 20 | . 2 11 3 4 Classes Destroyed 12 | . 2 7 1 2 Worker 2 | . . 2 . . Hauler 4 | . 1 3 . . Recycler 1 | . . 1 . . Mechanic 1 | . . 1 . . Watcher 3 | . . 3 . . Swarmer 2 | . 2 . . . Grunt 8 | . . 6 2 . Brawler 1 | . . 1 . . Duelist 1 | . . . 1 . Sentry 4 | . . 4 . . Zionite 3 | . . . . 3 Mutant 4 | . . . . 4 Best Kill Streak 4 | . 3 4 3 2 Combat Bots Only 4 | . 2 4 3 2 Max Kills in Single Turn 1 | . 1 1 1 1 Gunslinging . | . . . . . Exploded . | . . . . . Melee . | . . . . . Uniques/NPCs Destroyed . | . . . . . Combat | -11 -10 -9 -9 -7 -------- Run | Yrd Mat Mat Min Zio Hostile Shots Fired 293 | . 15 42 4 232 Missed 76 | . 4 15 1 56 Damage Taken 2789 | . 85 383 32 2289 Core 402 | . . 54 . 348 Absorbed by Shields . | . . . . . Core Remaining (%) 100 | 100 100 . . . Volleys Fired 111 | . 10 55 4 42 Largest 2 | . 2 2 2 2 Hottest 60 | . 60 46 46 51 Shots Fired 213 | . 20 110 8 75 Gun 213 | . 20 110 8 75 Cannon . | . . . . . Launcher . | . . . . . Special . | . . . . . Kinetic 203 | . 10 110 8 75 Thermal 10 | . 10 . . . Explosive . | . . . . . Electromagnetic . | . . . . . Robot Hit Streak 25 | . 5 25 12 15 Robot Miss Streak 3 | . 3 2 1 3 Penetration Max . | . . . . . Secondary Targets 2 | . 1 1 . . Max Gunslinging Chain 1 | . 1 1 . . Shots Hit Robots 162 | . 13 82 7 60 Core Hits 72 | . 4 34 3 31 Critical Kills . | . . . . . Critical Parts Destroyed 1 | . . . . 1 Critical Strikes 1 | . . . . 1 Destroy 1 | . . . . 1 Melee Attacks . | . . . . . Impact . | . . . . . Slashing . | . . . . . Piercing . | . . . . . Sneak Attacks . | . . . . . Combat Hostiles . | . . . . . Follow-up Attacks . | . . . . . Damage Inflicted 2453 | . 160 1247 111 935 Guns 2400 | . 158 1196 111 935 Cannons . | . . . . . Explosions . | . . . . . Melee . | . . . . . Ramming 53 | . 2 51 . . Kinetic 2343 | . 101 1196 111 935 Thermal 57 | . 57 . . . Explosive . | . . . . . Electromagnetic . | . . . . . Impact . | . . . . . Slashing . | . . . . . Piercing . | . . . . . Highest Corruption 6 | . . . . 6 Average Corruption 5 | . . . . 5 Corruption Purged . | . . . . . Corruption Blocked . | . . . . . Effects 8 | . . . . 8 Matter Fused 4 | . . . . 4 Data Loss (minor) 1 | . . . . 1 Weapon Failures 3 | . . . . 3 Overload Shots . | . . . . . Overflow Damage . | . . . . . Projectiles . | . . . . . Explosions . | . . . . . Melee . | . . . . . Knockbacks 1 | . . 1 . . Impact 1 | . . 1 . . Kinetic . | . . . . . Secondary . | . . . . . Self-Inflicted Damage . | . . . . . Shots . | . . . . . Rammed 5 | . 1 4 . . Targets Rammed 7 | . 1 6 . . Kicked . | . . . . . Crushed 2 | . . 2 . . Highest Temperature 108 | . . 30 . 108 Average Temperature 29 | . . 6 . 40 Received Heat Transfer 1177 | . . 174 18 985 Siege Activations . | . . . . . Robots Corrupted . | . . . . . Combat Hostiles . | . . . . . Parts Fried . | . . . . . Impact Corruptions . | . . . . . Robots Melted . | . . . . . Combat Hostiles . | . . . . . Parts Melted 3 | . . . . 3 Heat Transferred 125 | . 125 . . . Parts Sabotaged . | . . . . . Parts Stolen . | . . . . . Parts Stripped . | . . . . . Power Chain Reactions . | . . . . . Alert | -11 -10 -9 -9 -7 ------- Run | Yrd Mat Mat Min Zio Peak Influence 283 | . 57 283 70 . Initial 24 | . . 24 5 . Average 89 | . 22 142 20 . Maximum Alert Level 1 | . . 1 . . Low Security (%) 84 | 100 100 73 100 . Level 1 15 | . . 26 . . Level 2 . | . . . . . Level 3 . | . . . . . Level 4 . | . . . . . Level 5 . | . . . . . High Security . | . . . . . Max Security . | . . . . . Squads Dispatched . | . . . . . Investigation . | . . . . . Extermination . | . . . . . Reinforcement . | . . . . . Assault . | . . . . . Garrison . | . . . . . Intercept . | . . . . . Searches Triggered . | . . . . . Construction Impeded . | . . . . . Haulers Reinforced . | . . . . . Active Scanning Responses . | . . . . . Cargo Convoy Interrupts . | . . . . . Stealth | -11 -10 -9 -9 -7 --------- Run | Yrd Mat Mat Min Zio Distress Signals 1 | . . 1 . . Communications Jammed . | . . . . . Distress Signals . | . . . . . Times Spotted 43 | . 5 19 3 16 Peak Tracking Total 8 | . 3 4 3 8 Tactical Retreats 2 | . . . . 2 Traps | -11 -10 -9 -9 -7 ------- Run | Yrd Mat Mat Min Zio Traps Triggered 1 | . 1 . . . Indirectly . | . . . . . Trap Hack Attempts . | . . . . . Triggered . | . . . . . Disarmed . | . . . . . Reprogrammed . | . . . . . Reused . | . . . . . Traps Extracted . | . . . . . Installed . | . . . . . Triggered . | . . . . . Machines | -11 -10 -9 -9 -7 ---------- Run | Yrd Mat Mat Min Zio Machines Disabled 2 | . . 2 . . Max in Single Turn 1 | . . 1 . . Machines Repaired . | . . . . . Machines Dismantled . | . . . . . Machines Sabotaged . | . . . . . Overloaded Fab Kills . | . . . . . Hacking | -11 -10 -9 -9 -7 --------- Run | Yrd Mat Mat Min Zio Machines Accessed 5 | . 1 4 . . Terminals 5 | . 1 4 . . Fabricators . | . . . . . Repair Stations . | . . . . . Recycling Units . | . . . . . Scanalyzers . | . . . . . Garrison Access . | . . . . . Total Hacks 14 | . 3 11 . . Successful 4 | . 1 3 . . Failed 10 | . 2 8 . . Catastrophic 4 | . 1 3 . . Database Lockouts . | . . . . . Manual 12 | . 3 7 . 2 Terminals 14 | . 3 11 . . Fabricators . | . . . . . Repair Stations . | . . . . . Recycling Units . | . . . . . Scanalyzers . | . . . . . Garrison Access . | . . . . . Terminal Hacks 4 | . 1 3 . . Terminal Index 1 | . 1 . . . Unreport Threat 1 | . . 1 . . Investigation Status 1 | . . 1 . . Hauler Manifests 1 | . . 1 . . Fabricator Hacks . | . . . . . Repair Station Hacks . | . . . . . Recycling Unit Hacks . | . . . . . Scanalyzer . | . . . . . Garrison Access Hacks . | . . . . . Unauthorized Hacks . | . . . . . Terminals . | . . . . . Fabricators . | . . . . . Repair Stations . | . . . . . Recycling Units . | . . . . . Scanalyzers . | . . . . . Garrison Access . | . . . . . Data Cores Recovered . | . . . . . Used . | . . . . . Hacking Detections 4 | . 1 3 . . Full Trace Events . | . . . . . Feedback Events . | . . . . . Feedback Blocked . | . . . . . Robot Schematics Acquired . | . . . . . Robots Built . | . . . . . Authchips . | . . . . . Time . | . . . . . Total Robot Build Rating . | . . . . . Part Schematics Acquired . | . . . . . Parts Built . | . . . . . Authchips . | . . . . . Time . | . . . . . Total Part Build Rating . | . . . . . Parts Repaired . | . . . . . Time . | . . . . . Parts Recycled . | . . . . . Recycled Matter . | . . . . . Retrieved Matter . | . . . . . Retrieved Components . | . . . . . Parts Scanalyzed . | . . . . . Part Schematics Acquired . | . . . . . Parts Damaged . | . . . . . Bothacking | -11 -10 -9 -9 -7 ------------ Run | Yrd Mat Mat Min Zio Used RIF Installer . | . . . . . Robots Hacked . | . . . . . Non-combat . | . . . . . Combat . | . . . . . Robot Hacks Applied . | . . . . . Relay Couplers Released . | . . . . . Fabnet Peak Effective % . | . . . . . Robots Rewired . | . . . . . Allies Hacked . | . . . . . Hacks Repelled . | . . . . . Allies | -11 -10 -9 -9 -7 -------- Run | Yrd Mat Mat Min Zio Total Allies 5 | . . . 1 4 Largest Group 4 | . . . 1 4 Highest-Rated Group 153 | . . . 31 153 Highest-Rated Ally 41 | . . . 31 41 Total Orders . | . . . . . Ally Attacks 9 | . . . 9 . Total Damage 83 | . . . 83 . Kills . | . . . . . Allies Corrupted . | . . . . . Allies Melted . | . . . . . Intel | -11 -10 -9 -9 -7 ------- Run | Yrd Mat Mat Min Zio Robot Analysis Total . | . . . . . Derelict Logs Recovered 2 | . . . . 2 Drone Launches . | . . . . . Drone Recoveries . | . . . . . Exploration | -11 -10 -9 -9 -7 ------------- Run | Yrd Mat Mat Min Zio Turns Passed 3506 | 77 378 851 205 1995 Spaces Moved 1854 | 43 178 380 113 1140 Core 3 | 3 . . . . Treads 1851 | 40 178 380 113 1140 Legs . | . . . . . Wheels . | . . . . . Hover . | . . . . . Flight . | . . . . . Fastest Speed 50 | 50 160 160 160 160 Average Speed 161 | 152 173 160 160 160 Slowest Speed 320 | 160 240 160 160 320 Overloaded Moves . | . . . . . Propulsion Burnouts . | . . . . . Robots Hopped . | . . . . . Cave-ins Triggered . | . . . . . Exploration Rate (%) 39 | 4 42 41 19 90 Regions Visited 4 Branch Regions 2 Pre-discovered Areas . | . . . . . Known Exits Taken . | . . . . . Unknown Exits Taken 4 | 1 1 1 1 . Scrap Searched 2 | . . . . 2 Spaces Dug . | . . . . . Terrain Destroyed . | . . . . . Melee . | . . . . . Projectile . | . . . . . AOE . | . . . . . Terrain Rammed . | . . . . . Walls Destroyed . | . . . . . Machines Disabled . | . . . . . Actions | -11 -10 -9 -9 -7 --------- Run | Yrd Mat Mat Min Zio Total 2166 | 52 225 526 131 1232 Wait 96 | . 18 50 8 20 Move 1850 | 42 177 379 112 1140 Hop . | . . . . . Pick Up 29 | 4 8 6 3 8 Fast Attach 18 | 6 4 1 . 7 Attach 10 | . . 3 . 7 Detach 3 | . 3 . . . Swap 18 | . 4 11 1 2 Drop 24 | . . 15 3 6 Fire 111 | . 10 55 4 42 Melee . | . . . . . Ram . | . . . . . Kick . | . . . . . Crush 7 | . 1 6 . . Escape Stasis . | . . . . . Rewire . | . . . . . Trap . | . . . . . Miscellaneous . | . . . . . Route ------- -11/Scrapyard -10/Materials -9/Materials -9/Mines -7/Zion (discovered 1 exit: [*Pro]) History --------- Turn | Location | Event 18 | -11/Scrapyard | Discovered new exit (range 16) 78 | -11/Scrapyard | Entered Materials 254 | -10/Materials | Discovered new exit (range 15) 302 | -10/Materials | Build established: Mutant 456 | -10/Materials | Entered another Materials area 456 | -9/Materials | Evolved 2 slots: Propulsion x1, Utility x1 1169 | -9/Materials | Discovered new exit (range 7) 1307 | -9/Materials | Entered Mines 1325 | -9/Mines | Received a Mining Laser from a helpful Derelict 1409 | -9/Mines | Build established: Scavenger-Mutant 1510 | -9/Mines | A Derelict revealed a hidden shortcut to a safe place 1512 | -9/Mines | Entered Zion 1542 | -7/Zion | Found GAL Module 1631 | -7/Zion | Discovered new exit (range 15) 1904 | -7/Zion | Given the Hacking Drone Bay 1908 | -7/Zion | Found Prototype Device 1934 | -7/Zion | Received a hallucinogenic algorithm 2022 | -7/Zion | Learned 4 Factory zone layouts 2207 | -7/Zion | Learned Factory security intel 2697 | -7/Zion | Imprinted 2700 | -7/Zion | Declared Zion's savior 2913 | -7/Zion | Found Relay Coupler [Programmer] 3274 | -7/Zion | Attacked by Zionites 3308 | -7/Zion | Core integrity fell below 50% 3353 | -7/Zion | Core integrity fell below 20% 3368 | -7/Zion | Lost 11 parts (1p5n1u4w) 3507 | -7/Zion | Destroyed by 7K-40B(z) with Makeshift Shrapnel Gun Last Messages --------------- Twisted Machinery. 03461_ IN-8KY(z) heat damages Mak. Laser. 03461_ System corrupted: Barrage Gun jammed. 03461_ Mak. Leg melted. 03461_ IN-8KY(z) destroyed. 03465_ System corrupted: Matter fused (-8). 03470_ Acquired 15 matter. 03490_ System corrupted: Matter fused (-8). 03499_ J5-RKO(z) pulls a Mak. Shrapnel Gun out of the Twisted Machinery. 03500_ QM-PTE(z) pulls a Mak. Laser out of the Twisted Machinery. 03500_ Critical hit (Burn: +37). 03502_ 7K-40B(z) pulls a Mak. Shrapnel Gun out of the Twisted Machinery. 03503_ R5-U1K(z) pulls a Mak. Sword out of the Twisted Machinery. 03503_ PE-743(z) pulls a Mak. Sword out of the Twisted Machinery. 03506_ System corrupted: Component data lost. Map ----- +----------------------------------------------------+ | ?????????#""" ##"""""" """" """# | | ??????????#" " ####"" """ | | ??????????#"" ###" "" | | ?????#"???#""" " #"#" | | ??????"""""#"" # """ "" | | ??????#""""##" """ "" """ """ | | ??????" X""#"" """" " """""""""" | | ??????# """#"" """ """ """" | | ?????## """"""" """"#" ""#""" | | ?????" """""""" """"" """##" | | ?????" "##""""""" """""" """""" | | ?????# """"""""" """#"##""" """#" " "" | | ????#""""""#"##""" """###""#" "##"" " | | ???"""#"#"#######""" """#""""" """""" | | ??????####????#"#""" """"" | | ?????????????##""#"" "##" | | ??????????#"##""""" """" | | ???????????#"""""" "#"" """"" """ | | ??????????#"#" "" ""#" """""" """" | | ???????????#"" """ """"#""""""""""""" | | ???????????#"" "" """###""##"#"##"#" | | ??????????#"""" """ ""z """#?######"####"" | | ??????????##"""" """" "" #""#???????##??### | | ???????????#"""" """"z "" #"##?????????????? | | ????????????##"" """"" z """#?????????????? | | ?????????????##"""""" @ """#?????????????? | | ??????????????####"" z z z"##????????????? | | ????#?????????##"""" ""###??????????? | | ??##"?###?????#"" z """"#??????????? | | ?##"###"###?###""" """ ""#??????????? | | "#"" """""###"""#"" """ ! "##?????????? | | "#" """"""""""" """" " %[" ""#?????????? | | """ """" " !""" """#?????????? | | """ """" " """""###?????????? | | #"" """"""""""""""""" """###???????????? | | """""#"""""#"#""""" ""##?????????????? | | """#######"""""""" """#?????????????? | | "##????#"""""""" ""#?????????????? | | ##" %"##????#"" ""#?????????????? | | "#" ""#????#"" "#"#????????????? | | """ """#???##"" """" "" ""##????????????? | | #"" ""##???#"#" "#""""""" """#?????????????? | | """ "##?????#"" ""#"""" ""###????????????? | | ""# "#??????#"" "#""" """"#????????????? | | ### #""#????#"" """" "" """"#"???????????? | | !! #"##?####"" ""#"" """ """""##??????# ?#? | | ! #?"??#""""" """"" """ """"""##???## ? | | !* #????#"" """ ""#"##### ? # | | ### #????##" """ """#"#"#"#### | | ??######????##" """""" """""""#"""" | +----------------------------------------------------+ Best States ------------- Heat Dissipation 42 Coolant Potential 100 Energy Generation 18 Energy Capacity 250 Matter Stores 300 Matter Capacity 300 Sight Range 16 Robot Scan Range 14 Terrain Scan Range 14 Terrain Scan Density 10 Evasion (%) 40 Recoil Reduction 3 Item Schematics ----------------- None Robot Schematics ------------------ None Fabricated ------------ Nothing Alien Tech Used ----------------- None Achievements -------------- None Challenges ------------ None Game ------ Seed FieldLaserInterpreter Manual? 0 Play Time 00:27:39 Cumulative 27.6 hours Start 2024.04.13 @ 11:07:34 End 2024.04.13 @ 11:33:46 Sessions 1 Manual Loads 0 Difficulty Rogue Special Mode None Game No. 48 Rogue 48 Adventurer 0 Explorer 0 Win Type - Total 0 Types 0/0/0/0/0/0/0/0/0 Lore% 30 Gallery% 36 Achievement% 25 Wizard Run 0 Options --------- Layout 1 ASCII 0 Keyboard 1 Movement Arrows Keybinds 0 Fullscreen 1 Font 24/Smallcaps Map View 50x35 Zoom Use 0% Tactical HUD 1 Map Filters NONE Filters NONE Steam 1 RUN: cfc64dbc-03d7-484f-a591-557625cc2889